bitfinex-derivatives/quotes_BTCF0:USTF0_20250718
["timestamp","ask_amount","ask_price","bid_price","bid_amount"]
[1752823680887,0.001,119800.0,119790.0,1.9028407]
[1752823681585,0.04882,119800.0,119790.0,1.9028407]
[1752823681786,0.16635,119800.0,119790.0,1.9028407]
[1752823683080,0.04882,119800.0,119790.0,1.9028407]
[1752823684289,0.001,119800.0,119790.0,1.9028407]
[1752823684586,0.001,119800.0,119790.0,1.45584477]
[1752823684587,0.8373354,119800.0,119790.0,1.45584477]
[1752823684979,0.8373354,119800.0,119790.0,0.84236477]
[1752823685183,0.8373354,119800.0,119790.0,1.45620477]
[1752823685787,0.67053,119800.0,119790.0,1.45620477]
[1752823685988,0.8373354,119800.0,119790.0,1.45620477]
[1752823686990,0.67053,119800.0,119790.0,1.45620477]
[1752823687288,0.8373354,119800.0,119790.0,1.45620477]
[1752823687588,0.4765354,119800.0,119790.0,1.45620477]
[1752823687790,0.30973,119800.0,119790.0,1.45620477]
[1752823688089,0.67053,119800.0,119790.0,1.45620477]
[1752823688489,0.30973,119800.0,119790.0,1.45620477]
[1752823689088,0.67053,119800.0,119790.0,1.45620477]
[1752823689583,0.04882,119800.0,119790.0,1.81700477]
[1752823689883,0.14109,119810.0,119800.0,0.4595954]
[1752823690087,0.0351,119820.0,119810.0,0.6075487]
[1752823690282,0.14338,119820.0,119810.0,0.96085407]
[1752823690489,0.8118404,119820.0,119810.0,0.4134715]
[1752823690690,1.1726404,119820.0,119810.0,0.8627115]
[1752823691084,0.79645503,119820.0,119810.0,0.8627115]
[1752823691690,0.79645503,119820.0,119810.0,0.8647915]
[1752823691991,0.96180503,119820.0,119810.0,0.9851115]
[1752823692690,0.96680503,119820.0,119810.0,0.9851115]
[1752823695988,0.96680503,119820.0,119810.0,0.3701515]
[1752823696187,0.96680503,119820.0,119810.0,0.9858715]
[1752823699098,1.3429904,119820.0,119810.0,0.9858715]
[1752823699298,0.96680503,119820.0,119810.0,1.0191515]
[1752823699498,0.96680503,119820.0,119810.0,1.0766715]
[1752823703593,0.96680503,119820.0,119810.0,1.47596687]
[1752823703799,0.96680503,119820.0,119810.0,1.0997815]
[1752823704197,0.96680503,119820.0,119810.0,1.0766715]
[1752823704398,0.96680503,119820.0,119810.0,1.0289115]
[1752823707608,0.96680503,119820.0,119810.0,1.0749915]
[1752823708108,0.96680503,119820.0,119810.0,0.8971515]
[1752823708306,0.96680503,119820.0,119810.0,0.8638715]
[1752823708507,0.96680503,119820.0,119810.0,0.8634315]
[1752823708809,0.96680503,119820.0,119810.0,1.0158315]
[1752823709107,0.96680503,119820.0,119810.0,0.4022315]
[1752823709408,1.3429904,119820.0,119810.0,0.4022315]
[1752823711305,0.96680503,119820.0,119810.0,0.4022315]
[1752823711499,1.3429904,119820.0,119810.0,0.4022315]
[1752823713310,1.3429904,119820.0,119810.0,0.23544]
[1752823713512,1.3429904,119820.0,119810.0,0.4022315]
[1752823713712,1.3429904,119820.0,119810.0,0.2801115]
[1752823714014,1.3429904,119820.0,119810.0,0.00208]
[1752823714512,0.4834654,119800.0,119790.0,0.5372301]
[1752823714707,1.22045077,119800.0,119790.0,0.5372301]
[1752823714908,1.34587994,119800.0,119790.0,0.5372301]
[1752823715406,0.96969457,119800.0,119790.0,0.5372301]
[1752823716913,0.97069457,119800.0,119790.0,0.5372301]
[1752823717709,0.97069457,119800.0,119790.0,0.4608701]
[1752823717909,1.34687994,119800.0,119790.0,0.2085154]
[1752823718511,1.34787994,119800.0,119790.0,0.2085154]
[1752823718709,0.97169457,119800.0,119790.0,0.2085154]
[1752823719715,0.4609097,119790.0,119780.0,0.28774]
[1752823720015,1.4571197,119790.0,119780.0,0.4084936]
[1752823720215,1.4571197,119790.0,119780.0,0.4064136]
[1752823721313,1.4571197,119790.0,119780.0,0.78259897]
[1752823721816,1.4571197,119790.0,119780.0,0.82867897]
[1752823722418,1.4571197,119790.0,119780.0,0.78259897]
[1752823723315,1.4601197,119790.0,119780.0,0.84011897]
[1752823723616,1.4601197,119790.0,119780.0,0.4639336]
[1752823723909,1.4601197,119790.0,119780.0,0.84011897]
[1752823724114,0.8472797,119790.0,119780.0,0.84011897]
[1752823724416,1.4629597,119790.0,119780.0,0.86322897]
[1752823724609,1.4629597,119790.0,119780.0,0.84011897]
[1752823725312,1.4609597,119790.0,119780.0,0.84011897]
[1752823725615,1.4609597,119790.0,119780.0,0.4639336]
[1752823725815,1.4589597,119790.0,119780.0,0.84011897]
[1752823726015,1.4619597,119790.0,119780.0,0.84011897]
[1752823726216,1.58783584,119790.0,119780.0,0.61576537]
[1752823726411,1.58783584,119790.0,119780.0,0.78259907]
[1752823726812,1.58883584,119790.0,119780.0,0.61576537]
[1752823727013,1.96502121,119790.0,119780.0,0.01009]
[1752823727216,0.4834937,119780.0,119770.0,0.00208]
[1752823727412,1.22047907,119780.0,119770.0,0.00208]
[1752823727617,1.22047907,119780.0,119760.0,0.74225037]
[1752823727618,0.2939776,119770.0,119760.0,0.74225037]
[1752823727814,1.4575476,119770.0,119760.0,0.74225037]
[1752823728019,1.58222168,119770.0,119760.0,0.74225037]
[1752823728422,1.59024517,119770.0,119760.0,0.74225037]
[1752823728617,1.59024517,119770.0,119760.0,0.77253037]
[1752823728814,1.58222168,119770.0,119760.0,0.77253037]
[1752823729015,1.58222168,119770.0,119760.0,0.83341037]
[1752823729824,1.58266168,119770.0,119760.0,0.83341037]
[1752823730325,0.96898168,119770.0,119760.0,0.83341037]
[1752823730521,1.58346168,119770.0,119760.0,0.83341037]
[1752823730723,0.97398168,119770.0,119760.0,0.78426037]
[1752823730923,1.58846168,119770.0,119760.0,0.78426037]
[1752823731532,1.58846168,119770.0,119760.0,0.83341037]
[1752823732630,1.58846168,119770.0,119760.0,0.78426037]
[1752823733227,1.58846168,119770.0,119760.0,0.83341037]
[1752823733427,1.58846168,119770.0,119760.0,0.457225]
[1752823733629,1.58846168,119770.0,119760.0,0.83341037]
[1752823735934,1.58882168,119770.0,119760.0,0.83341037]
[1752823736235,1.58882168,119770.0,119760.0,0.457225]
[1752823736428,1.58882168,119770.0,119760.0,0.83341037]
[1752823739232,1.58882168,119770.0,119760.0,0.83341697]
[1752823740442,1.58882168,119770.0,119760.0,0.83549697]
[1752823740636,1.58882168,119770.0,119760.0,0.4593116]
[1752823740934,1.58882168,119770.0,119760.0,0.83549697]
[1752823741740,1.58882168,119770.0,119760.0,0.4593116]
[1752823742039,1.58882168,119770.0,119760.0,0.83549697]
[1752823743742,1.58882168,119770.0,119760.0,0.4593116]
[1752823744139,1.58882168,119770.0,119760.0,0.83549697]
[1752823746139,1.58882168,119770.0,119760.0,0.29245]
[1752823746347,1.96500705,119770.0,119760.0,0.00208]
[1752823746741,1.58882168,119770.0,119760.0,0.00208]
[1752823752248,1.58882168,119770.0,119760.0,0.1689418]
[1752823752748,1.58882168,119770.0,119760.0,0.54512717]
[1752823753150,1.58882168,119770.0,119760.0,0.37826537]
[1752823753451,1.58882168,119770.0,119760.0,0.54512717]
[1752823753750,1.58882168,119770.0,119760.0,0.37826537]
[1752823754552,1.58882168,119770.0,119760.0,0.37618537]
[1752823755745,1.58882168,119770.0,119750.0,0.79839737]
[1752823755946,0.8426218,119760.0,119750.0,0.92064737]
[1752823756143,0.8426218,119760.0,119750.0,0.87892867]
[1752823757253,0.8436218,119760.0,119750.0,0.90234867]
[1752823757453,0.8436218,119760.0,119750.0,0.5261633]
[1752823757655,0.8436218,119760.0,119750.0,0.90234867]
[1752823758652,0.8436218,119760.0,119750.0,0.87892867]
[1752823758653,0.8446218,119760.0,119750.0,0.87892867]
[1752823761357,0.8446218,119760.0,119750.0,0.83720997]
[1752823761658,0.8446218,119760.0,119750.0,0.83928997]
[1752823761859,0.8446218,119760.0,119750.0,0.84115719]
[1752823762558,0.8446218,119760.0,119750.0,0.46497182]
[1752823762753,0.8446218,119760.0,119750.0,0.84115719]
[1752823763059,0.8446218,119760.0,119750.0,0.67429259]
[1752823764258,0.8446218,119760.0,119750.0,0.84116839]
[1752823764459,0.96953562,119760.0,119750.0,0.62514259]
[1752823764854,0.96953562,119760.0,119750.0,0.79201829]
[1752823765051,0.96953562,119760.0,119750.0,0.83767829]
[1752823766260,0.96953562,119760.0,119750.0,0.46149292]
[1752823766557,0.96953562,119760.0,119750.0,0.83767829]
[1752823767662,0.96953562,119760.0,119750.0,0.46149292]
[1752823767960,0.96953562,119760.0,119750.0,0.83767829]
[1752823768161,0.96953562,119760.0,119750.0,1.44991839]
[1752823768461,0.96953562,119760.0,119750.0,1.28304259]
[1752823768662,0.96953562,119760.0,119750.0,1.44991839]
[1752823770265,0.96953562,119760.0,119750.0,0.83767839]
[1752823770663,0.96953562,119760.0,119750.0,0.67080259]
[1752823771163,0.96953562,119760.0,119750.0,0.83767839]
[1752823772063,0.96953562,119760.0,119750.0,0.86108839]
[1752823772967,0.96953562,119760.0,119750.0,0.48490302]
[1752823773263,0.96953562,119760.0,119750.0,0.86108839]
[1752823773864,0.96953562,119760.0,119750.0,1.47328839]
[1752823779468,0.96953562,119760.0,119750.0,1.09710302]
[1752823779669,0.96953562,119760.0,119750.0,1.47328839]
[1752823781068,0.96953562,119760.0,119750.0,0.86108839]
[1752823781365,0.96953562,119760.0,119750.0,1.47324839]
[1752823781564,0.84619562,119760.0,119750.0,1.47324839]
[1752823783171,0.84619562,119760.0,119750.0,1.09706302]
[1752823783370,0.84619562,119760.0,119750.0,1.47324839]
[1752823784171,0.96784562,119760.0,119750.0,1.47324839]
[1752823786072,1.45827562,119760.0,119750.0,0.86108839]
[1752823786274,1.57992562,119760.0,119750.0,0.86108839]
[1752823787678,1.57992562,119760.0,119750.0,0.83767839]
[1752823789676,1.57992562,119760.0,119750.0,0.46149302]
[1752823789975,1.57992562,119760.0,119750.0,0.83767839]
[1752823790171,1.57992562,119760.0,119750.0,0.00394722]
[1752823790373,2.06611099,119760.0,119750.0,0.00394722]
[1752823790578,0.4640336,119730.0,119720.0,0.96285697]
[1752823790876,0.4883736,119730.0,119720.0,0.96285697]
[1752823791177,0.4883736,119730.0,119720.0,0.98659697]
[1752823792074,0.4883736,119730.0,119720.0,0.98759697]
[1752823792476,0.4883736,119730.0,119720.0,1.59959697]
[1752823792776,0.4883736,119730.0,119720.0,1.60758353]
[1752823792977,0.1669036,119730.0,119720.0,1.9847689]
[1752823793173,0.8526019,119740.0,119730.0,0.4852236]
[1752823793472,0.85370082,119740.0,119730.0,0.86140897]
[1752823793975,1.05780082,119740.0,119730.0,0.86140897]
[1752823794675,1.05780082,119740.0,119730.0,0.4852236]
[1752823794877,1.05780082,119740.0,119730.0,0.4862236]
[1752823795176,1.05780082,119740.0,119730.0,0.86240897]
[1752823796176,1.0661239,119740.0,119730.0,0.86240897]
[1752823796379,1.05780082,119740.0,119730.0,0.86240897]
[1752823798876,0.60334892,119740.0,119730.0,0.86240897]
[1752823799083,0.3259758,119750.0,119740.0,0.4852097]
[1752823799284,0.2086058,119750.0,119740.0,1.47331507]
[1752823799683,0.2821658,119750.0,119740.0,1.47331507]
[1752823799984,0.3146958,119750.0,119740.0,1.47331507]
[1752823800185,0.4510558,119750.0,119740.0,1.47331507]
[1752823800780,0.8118558,119750.0,119740.0,1.47331507]
[1752823800984,0.8918758,119750.0,119740.0,1.47331507]
[1752823801180,0.8928758,119750.0,119740.0,1.47331507]
[1752823801381,0.5320758,119750.0,119740.0,1.47331507]
[1752823801876,0.8928758,119750.0,119740.0,1.47331507]
[1752823803992,0.8928758,119750.0,119740.0,1.44957507]
[1752823804591,0.8928758,119750.0,119740.0,0.83765507]
[1752823805190,0.8928758,119750.0,119740.0,1.44945507]
[1752823805691,0.8928758,119750.0,119740.0,1.47319507]
[1752823806390,0.6887758,119750.0,119740.0,1.47319507]
[1752823806591,0.5296867,119750.0,119740.0,1.47319507]
[1752823806787,0.1688757,119750.0,119740.0,1.47319507]
[1752823806990,0.002,119750.0,119740.0,1.47319507]
[1752823807589,0.002,119750.0,119740.0,2.37720444]
[1752823807787,1.2066553,119790.0,119780.0,0.4614139]
[1752823807987,0.8415853,119790.0,119780.0,0.86133927]
[1752823808392,0.8908053,119790.0,119780.0,0.86133927]
[1752823809194,0.53462,119790.0,119780.0,0.86133927]
[1752823809898,0.86109,119790.0,119780.0,0.86133927]
[1752823813097,0.86109,119790.0,119780.0,0.20251]
[1752823813299,1.36185173,119790.0,119780.0,0.931034]
[1752823813597,0.98566636,119790.0,119780.0,0.54509937]
[1752823813793,0.98566636,119790.0,119780.0,0.168914]
[1752823813996,0.98566636,119790.0,119780.0,0.286534]
[1752823814296,0.98566636,119790.0,119780.0,0.898054]
[1752823814795,0.98566636,119790.0,119780.0,1.47493937]
[1752823815003,0.86109,119790.0,119780.0,1.47493937]
[1752823816296,0.86109,119790.0,119780.0,1.098754]
[1752823816601,0.86109,119790.0,119780.0,1.45119937]
[1752823817204,0.86109,119790.0,119780.0,1.47493937]
[1752823817805,0.86109,119790.0,119780.0,1.098754]
[1752823818102,0.86109,119790.0,119780.0,1.47493937]
[1752823822096,0.86109,119790.0,119780.0,1.098754]
[1752823822296,0.86109,119790.0,119780.0,1.47493937]
[1752823823106,0.86109,119790.0,119780.0,0.86341937]
[1752823823306,0.86109,119790.0,119780.0,1.47477937]
[1752823824208,0.86109,119790.0,119780.0,1.47269937]
[1752823825305,0.86109,119790.0,119780.0,1.47477937]
[1752823825905,0.44636,119790.0,119780.0,1.47477937]
[1752823826108,0.012,119790.0,119780.0,1.83557937]
[1752823826409,0.2814922,119810.0,119800.0,0.4764461]
[1752823826608,0.2814922,119810.0,119800.0,2.20089684]
[1752823827004,0.2814922,119810.0,119800.0,1.84009684]
[1752823827709,0.2824922,119810.0,119800.0,1.46391147]
[1752823827910,0.08916,119810.0,119800.0,1.46391147]
[1752823828412,0.08916,119810.0,119800.0,1.84009684]
[1752823828711,0.005,119810.0,119800.0,1.84009684]
[1752823829211,0.005,119810.0,119800.0,2.28436581]
[1752823830910,0.001,119810.0,119800.0,2.28436581]
[1752823831111,0.001,119810.0,119800.0,2.29036581]
[1752823831308,0.2390385,119820.0,119810.0,0.2853323]
[1752823831515,0.2390385,119820.0,119810.0,0.85261767]
[1752823831815,0.9238583,119830.0,119820.0,0.4764183]
[1752823832012,0.9238583,119830.0,119820.0,1.46372367]
[1752823832210,1.0075838,119830.0,119820.0,1.46372367]
[1752823833012,0.6737,119830.0,119820.0,1.46372367]
[1752823833214,0.3608,119830.0,119820.0,1.46372367]
[1752823833714,0.5491,119840.0,119830.0,0.2853044]
[1752823833911,0.561,119850.0,119840.0,0.4763905]
[1752823834111,0.58954,119860.0,119850.0,0.1667366]
[1752823834310,0.6737,119860.0,119850.0,0.80256197]
[1752823834510,0.8404227,119860.0,119850.0,0.75256197]
[1752823834711,0.8404227,119860.0,119850.0,0.9643266]
[1752823834915,0.8404227,119860.0,119850.0,1.34051197]
[1752823835610,0.2446866,119850.0,119840.0,0.4950211]
[1752823835814,0.8404366,119850.0,119840.0,1.0878684]
[1752823836011,1.09092919,119850.0,119840.0,0.1667505]
[1752823836206,0.1667505,119840.0,119830.0,0.3279726]
[1752823836411,0.4548144,119830.0,119820.0,0.5367437]
[1752823836618,0.8404644,119830.0,119820.0,1.0574]
[1752823836914,0.8404644,119830.0,119820.0,0.93788]
[1752823837116,0.8404644,119830.0,119820.0,0.65972537]
[1752823837309,0.8404644,119830.0,119820.0,1.43865537]
[1752823837713,0.8404644,119830.0,119820.0,1.44265537]
[1752823838318,0.8404644,119830.0,119820.0,1.27460537]
[1752823838509,0.8404644,119830.0,119820.0,0.82434]
[1752823838816,0.84865645,119830.0,119820.0,0.7826583]
[1752823839016,0.84865645,119830.0,119820.0,0.7847383]
[1752823839315,0.8404644,119830.0,119820.0,0.7807383]
[1752823839513,0.8404644,119830.0,119820.0,1.15992367]
[1752823839818,0.8404644,119830.0,119820.0,1.27644367]
[1752823840018,0.8404644,119830.0,119820.0,0.7817383]
[1752823841219,0.8404644,119830.0,119820.0,0.7807383]
[1752823843218,0.8404644,119830.0,119820.0,0.9002583]
[1752823843420,0.8404644,119830.0,119820.0,0.9753383]
[1752823844221,0.8404644,119830.0,119820.0,1.35152367]
[1752823845817,0.8404644,119830.0,119820.0,0.9753383]
[1752823847319,0.8404644,119830.0,119820.0,1.38367367]
[1752823847717,0.8404644,119830.0,119820.0,1.43220367]
[1752823848923,0.8404644,119830.0,119820.0,1.45684367]
[1752823852413,0.4755,119830.0,119820.0,1.45684367]
[1752823852617,0.6422649,119830.0,119820.0,1.45684367]
[1752823852923,0.7655849,119830.0,119820.0,1.45684367]
[1752823853124,0.8478649,119830.0,119820.0,1.45684367]
[1752823855721,0.6811,119830.0,119820.0,1.45684367]
[1752823855921,0.8478649,119830.0,119820.0,1.45684367]
[1752823856220,0.7245449,119830.0,119820.0,1.45684367]
[1752823856519,0.8478649,119830.0,119820.0,1.45684367]
[1752823860228,0.6811,119830.0,119820.0,1.45684367]
[1752823860429,0.4755,119830.0,119820.0,1.45684367]
[1752823860630,0.3608,119830.0,119820.0,1.45684367]
[1752823861229,0.3608,119840.0,119830.0,0.4838449]
[1752823861428,0.3608,119840.0,119830.0,0.86003027]
[1752823862430,0.3618,119840.0,119830.0,0.86003027]
[1752823862630,0.3628,119840.0,119830.0,0.86003027]
[1752823863233,0.3618,119840.0,119830.0,1.47243027]
[1752823863427,0.3618,119840.0,119830.0,0.86311027]
[1752823863632,0.3618,119840.0,119830.0,1.47339027]
[1752823863931,0.07213,119840.0,119830.0,1.47339027]
[1752823864532,0.848741,119840.0,119830.0,0.86311027]
[1752823864735,1.22492637,119840.0,119830.0,0.1698449]
[1752823864931,1.35003298,119840.0,119830.0,0.00308]
[1752823865332,0.97384761,119840.0,119830.0,0.1698449]
[1752823866036,0.97384761,119840.0,119830.0,0.1688449]
[1752823866335,0.97384761,119840.0,119830.0,0.83747027]
[1752823866535,0.97384761,119840.0,119830.0,0.4612849]
[1752823866834,0.97384761,119840.0,119830.0,0.79044027]
[1752823867135,0.97284761,119840.0,119830.0,0.79344027]
[1752823867835,0.97284761,119840.0,119830.0,0.4172549]
[1752823869132,0.97284761,119840.0,119830.0,0.4142549]
[1752823869340,0.97284761,119840.0,119830.0,0.4152549]
[1752823870038,0.97284761,119840.0,119830.0,0.1698449]
[1752823873844,0.97284761,119840.0,119830.0,0.54603027]
[1752823874244,0.97284761,119840.0,119830.0,0.66781027]
[1752823874445,0.97284761,119840.0,119830.0,0.74670027]
[1752823875651,0.97284761,119840.0,119830.0,0.3705149]
[1752823876153,0.97284761,119840.0,119830.0,0.2487349]
[1752823877549,0.97284761,119840.0,119830.0,0.3705149]
[1752823877749,0.97284761,119840.0,119830.0,0.4032449]
[1752823878251,0.97284761,119840.0,119830.0,0.77943027]
[1752823878654,0.97284761,119840.0,119830.0,0.4032449]
[1752823878951,0.97284761,119840.0,119830.0,0.77943027]
[1752823879143,1.33364761,119840.0,119830.0,0.77943027]
[1752823879544,1.33364761,119840.0,119830.0,0.4032449]
[1752823879753,1.33364761,119840.0,119830.0,0.77943027]
[1752823880054,1.33364761,119840.0,119830.0,0.4032449]
[1752823880254,1.33364761,119840.0,119830.0,0.77943027]
[1752823880752,1.33364761,119840.0,119830.0,0.23648]
[1752823880954,1.33364761,119840.0,119810.0,0.0416967]
[1752823880955,0.3418135,119810.0,119800.0,0.551527]
[1752823881152,1.8118135,119810.0,119800.0,0.5438986]
[1752823881448,1.8118135,119810.0,119800.0,0.96941397]
[1752823881449,1.93766053,119810.0,119800.0,0.96941397]
[1752823881855,1.93766053,119810.0,119800.0,0.5932286]
[1752823882053,1.93766053,119810.0,119800.0,0.96941397]
[1752823882253,1.93866053,119810.0,119800.0,0.96941397]
[1752823883055,1.93766053,119810.0,119800.0,0.551527]
[1752823883255,1.93766053,119810.0,119800.0,0.87838237]
[1752823883456,1.93766053,119810.0,119800.0,0.502197]
[1752823883657,1.93766053,119810.0,119800.0,0.87838237]
[1752823883856,1.93766053,119810.0,119800.0,0.502197]
[1752823884958,1.32782053,119810.0,119800.0,0.92771237]
[1752823885158,1.93758053,119810.0,119800.0,0.95113237]
[1752823885755,1.93758053,119810.0,119800.0,0.4187946]
[1752823885955,0.1668075,119800.0,119790.0,1.0358209]
[1752823886162,0.8411875,119800.0,119790.0,0.92981627]
[1752823886361,0.8411875,119800.0,119790.0,0.92773627]
[1752823887361,0.8411875,119800.0,119790.0,0.5515509]
[1752823887561,0.8411875,119800.0,119790.0,0.92773627]
[1752823887862,0.8411875,119800.0,119790.0,0.92873627]
[1752823888956,0.8411875,119800.0,119790.0,0.88703137]
[1752823889160,0.8411875,119800.0,119790.0,0.461516]
[1752823889360,0.8411875,119800.0,119790.0,0.463516]
[1752823890262,0.8411875,119800.0,119790.0,0.88903137]
[1752823891061,0.8411875,119800.0,119790.0,0.463516]
[1752823892058,1.21737287,119800.0,119790.0,0.15926]
[1752823892258,1.34250111,119800.0,119790.0,0.003]
[1752823893061,0.96631574,119800.0,119790.0,0.003]
[1752823893262,1.34250111,119800.0,119790.0,0.003]
[1752823893859,1.34250111,119800.0,119790.0,0.1688214]
[1752823894364,1.34250111,119800.0,119790.0,0.002]
[1752823895060,0.1668215,119790.0,119780.0,0.40655674]
[1752823895263,1.4507615,119790.0,119780.0,0.2502366]
[1752823896164,1.4507615,119790.0,119780.0,0.1668241]
[1752823896959,1.4507615,119790.0,119780.0,0.1698241]
[1752823897166,1.4507615,119790.0,119780.0,0.2942141]
[1752823897366,1.4507615,119790.0,119780.0,0.4093341]
[1752823899170,1.4507615,119790.0,119780.0,0.78551947]
[1752823899672,1.4507615,119790.0,119780.0,0.79800947]
[1752823899874,1.4507615,119790.0,119780.0,0.84733947]
[1752823901967,1.4507615,119790.0,119780.0,0.4711541]
[1752823902176,1.8115615,119790.0,119780.0,0.84733947]
[1752823903075,1.8115615,119790.0,119780.0,0.4711541]
[1752823903274,1.8115615,119790.0,119780.0,0.84733947]
[1752823905375,1.8115615,119790.0,119780.0,0.79800947]
[1752823905675,1.8115615,119790.0,119780.0,0.4218241]
[1752823905976,1.8115615,119790.0,119780.0,0.79800947]
[1752823907580,1.8115615,119790.0,119780.0,0.84733947]
[1752823909278,1.8115615,119790.0,119780.0,0.4711541]
[1752823909479,1.8115615,119790.0,119780.0,0.84733947]
[1752823910977,1.8110415,119790.0,119780.0,0.84733947]
[1752823911180,1.2020015,119790.0,119780.0,0.84733947]
[1752823911381,1.8110415,119790.0,119780.0,0.84733947]
[1752823911876,1.2020015,119790.0,119780.0,0.84733947]
[1752823912380,1.8110015,119790.0,119780.0,0.84941947]
[1752823912682,1.2020015,119790.0,119780.0,0.84941947]
[1752823913181,1.8109615,119790.0,119780.0,0.84941947]
[1752823914481,1.8109615,119790.0,119780.0,0.4732341]
[1752823914681,1.8109615,119790.0,119780.0,0.80008947]
[1752823915284,1.8109615,119790.0,119780.0,0.66320947]
[1752823915582,1.8109615,119790.0,119780.0,0.1719041]
[1752823916582,2.31227823,119790.0,119780.0,0.00508]
[1752823918384,1.93609286,119790.0,119780.0,0.00508]
[1752823918584,2.31227823,119790.0,119780.0,0.003]
[1752823920085,2.31227823,119790.0,119780.0,0.00508]
[1752823920282,0.4747593,119770.0,119760.0,0.4578913]
[1752823920480,0.4504332,119760.0,119750.0,1.48448877]
[1752823920681,0.8355732,119760.0,119750.0,0.4996234]
[1752823920882,0.8355732,119760.0,119750.0,0.3999357]
[1752823921780,0.8355732,119760.0,119750.0,0.78775107]
[1752823921981,0.66871,119760.0,119750.0,0.83409107]
[1752823922186,0.66871,119760.0,119750.0,0.85798107]
[1752823922382,0.8355732,119760.0,119750.0,0.86398107]
[1752823922889,0.8355732,119760.0,119750.0,0.4877957]
[1752823923389,0.8355732,119760.0,119750.0,0.84009107]
[1752823923588,0.8355732,119760.0,119750.0,0.84309107]
[1752823924091,0.84375999,119760.0,119750.0,0.84309107]
[1752823924288,0.8355732,119760.0,119750.0,0.84309107]
[1752823925896,0.8355732,119760.0,119750.0,0.4669057]
[1752823926082,0.8355732,119760.0,119750.0,0.84309107]
[1752823926585,0.8355732,119760.0,119750.0,0.86698107]
[1752823926788,0.30791,119760.0,119750.0,0.86698107]
[1752823926989,0.02434,119760.0,119750.0,1.47554107]
[1752823927192,0.66871,119770.0,119760.0,0.4817932]
[1752823927492,0.30791,119770.0,119760.0,0.85797857]
[1752823928190,0.66871,119770.0,119760.0,0.85797857]
[1752823928492,0.8355592,119770.0,119760.0,0.85797857]
[1752823928691,0.8355592,119770.0,119760.0,0.86197857]
[1752823928987,0.8355592,119770.0,119760.0,0.4857932]
[1752823929192,0.8355592,119770.0,119760.0,0.86197857]
[1752823929592,0.8355592,119770.0,119760.0,0.86397857]
[1752823932293,0.8355592,119770.0,119760.0,0.4877932]
[1752823932494,0.8355592,119770.0,119760.0,0.86397857]
[1752823933491,0.8355592,119770.0,119760.0,0.1728632]
[1752823934196,0.8355592,119770.0,119760.0,0.78211857]
[1752823934399,0.8355592,119770.0,119760.0,0.84008857]
[1752823935096,0.8355592,119770.0,119760.0,0.86397857]
[1752823935291,0.0706,119770.0,119760.0,1.24016394]
[1752823935493,0.44939,119790.0,119780.0,0.4462453]
[1752823935697,0.3608,119810.0,119800.0,0.2568174]
[1752823935897,0.3608,119810.0,119800.0,1.84234814]
[1752823936599,0.3608,119810.0,119800.0,1.46616277]
[1752823937098,0.5275935,119810.0,119800.0,1.46616277]
[1752823937500,0.5295935,119810.0,119800.0,1.46616277]
[1752823938002,0.6001935,119810.0,119800.0,1.46616277]
[1752823938598,0.8353535,119810.0,119800.0,1.0659674]
[1752823939301,0.8353535,119810.0,119800.0,1.46641277]
[1752823939699,0.8373535,119810.0,119800.0,1.46641277]
[1752823939895,0.8353535,119810.0,119800.0,0.29104]
[1752823940100,0.8353535,119810.0,119800.0,0.85282]
[1752823940296,0.3545714,119790.0,119780.0,1.32367]
[1752823940499,1.21500677,119790.0,119780.0,0.12188]
[1752823940704,0.4780353,119780.0,119770.0,1.48362137]
[1752823940899,0.8388353,119780.0,119770.0,1.50788137]
[1752823941305,0.8388353,119780.0,119770.0,1.131696]
[1752823941504,0.8388353,119780.0,119770.0,1.50788137]
[1752823942406,0.8388353,119780.0,119770.0,1.50988137]
[1752823943507,0.8388353,119780.0,119770.0,1.135776]
[1752823943708,0.8388353,119780.0,119770.0,1.48770137]
[1752823944207,0.8388353,119780.0,119770.0,1.111516]
[1752823944407,0.8388353,119780.0,119770.0,1.48770137]
[1752823945908,0.8388353,119780.0,119770.0,1.111516]
[1752823946207,0.8388353,119780.0,119770.0,1.51196137]
[1752823947304,0.8388353,119780.0,119770.0,1.51396137]
[1752823950210,0.8388353,119780.0,119770.0,0.90588137]
[1752823950412,0.8388353,119780.0,119770.0,1.51388137]
[1752823950914,0.8388353,119780.0,119770.0,1.137696]
[1752823951115,0.8388353,119780.0,119770.0,1.51388137]
[1752823952818,0.4780353,119780.0,119770.0,1.51388137]
[1752823953117,0.2494953,119780.0,119770.0,1.51388137]
[1752823953611,0.7604473,119790.0,119780.0,0.1668353]
[1752823953812,0.2085328,119790.0,119780.0,0.85808067]
[1752823954014,0.12605721,119790.0,119780.0,0.85808067]
[1752823954312,0.843826,119810.0,119800.0,0.4818675]
[1752823954517,0.843826,119810.0,119800.0,1.46601287]
[1752823954818,0.922206,119810.0,119800.0,1.0898275]
[1752823955019,0.922206,119810.0,119800.0,1.46601287]
[1752823955710,0.924206,119810.0,119800.0,1.46601287]
[1752823956220,0.924206,119810.0,119800.0,1.0898275]
[1752823956419,0.924206,119810.0,119800.0,1.46601287]
[1752823957716,0.922206,119810.0,119800.0,1.46601287]
[1752823959521,0.922206,119810.0,119800.0,0.85805287]
[1752823959817,0.922206,119810.0,119800.0,1.46597287]
[1752823960219,0.922206,119810.0,119800.0,1.46805287]
[1752823962521,0.922206,119810.0,119800.0,1.44379287]
[1752823962820,0.922206,119810.0,119800.0,1.39668287]
[1752823963221,0.922206,119810.0,119800.0,1.44375287]
[1752823964222,0.922206,119810.0,119800.0,1.0675675]
[1752823964523,0.922206,119810.0,119800.0,1.46801287]
[1752823964920,0.922206,119810.0,119800.0,1.0918275]
[1752823965122,0.922206,119810.0,119800.0,1.46801287]
[1752823965618,0.922206,119810.0,119800.0,1.0675675]
[1752823966121,0.922206,119810.0,119800.0,1.44375287]
[1752823967324,0.922206,119810.0,119800.0,1.0675675]
[1752823967522,0.922206,119810.0,119800.0,1.44375287]
[1752823968626,0.922206,119810.0,119800.0,1.46627287]
[1752823969826,0.922206,119810.0,119800.0,1.0900875]
[1752823970028,0.922206,119810.0,119800.0,1.46627287]
[1752823970929,0.922206,119810.0,119800.0,1.0900875]
[1752823971127,0.922206,119810.0,119800.0,1.46627287]
[1752823972926,0.59089,119820.0,119810.0,0.3419536]
[1752823973230,0.08181,119830.0,119820.0,0.4845396]
[1752823973427,0.8761616,119840.0,119830.0,0.2920457]
[1752823973732,1.00094267,119840.0,119830.0,0.86071107]
[1752823974829,1.00094267,119840.0,119830.0,0.86171107]
[1752823975031,1.00094267,119840.0,119830.0,0.86379107]
[1752823975831,1.00094267,119840.0,119830.0,0.4876057]
[1752823976032,1.00094267,119840.0,119830.0,0.86479107]
[1752823976932,1.00094267,119840.0,119830.0,0.4886057]
[1752823977133,1.00094267,119840.0,119830.0,0.4660857]
[1752823978032,1.36174267,119840.0,119830.0,0.4660857]
[1752823987841,1.36174267,119840.0,119830.0,0.86479107]
[1752823987842,0.87102107,119840.0,119830.0,0.86479107]